[Event "44th Chess Olympiad Open 2022"]
[Site "Chennai"]
[Date "2022.07.29"]
[Round "1.55"]
[White "Amega-Dzaka, Komi Nukunu"]
[Black "Sklyarov, Dmitry V."]
[Result "0-1"]
[WhiteElo "1639"]
[BlackElo "2474"]
[Annotator "TA"]
[PlyCount "86"]
[EventDate "2022.??.??"]
[TimeControl "60"]

{[%evp 9,85,5,12,16,9,18,25,9,21,0,-8,-21,-2,-33,-42,-30,-41,-49,-33,-24,-27,
-35,-43,-39,-27,-58,-52,-75,-68,-85,-82,-275,-274,-301,-310,-319,-316,-309,
-309,-422,-411,-517,-526,-506,-392,-626,-633,-661,-655,-737,-737,-723,-691,
-686,-699,-1812,-1575,-4676,-2078,-1895,-1574,-2906,-2088,-29942,-9624,-2060,
-4985,-29993,-29994,-29996,-29996,-29996,-29997,-29997,-29998,-29998,-29999,
-29999]} 1. d4 {[%emt 0:00:21]} g6 {[%emt 0:00:08]} 2. Nf3 {[%emt 0:00:14]} Bg7
{[%emt 0:00:04]} 3. c3 {[%emt 0:00:19]} d6 {[%emt 0:00:28]} 4. Bg5 {[%emt 0:00:
00]} h6 {[%emt 0:00:42]} 5. Bh4 {[%emt 0:00:20]} Nf6 {[%emt 0:03:10]} 6. e3 {
[%emt 0:02:00] A40: Unusual replies to 1 d4.} Nbd7 {[%emt 0:04:09]} 7. Bc4 {
[%emt 0:03:04]} b6 {[%emt 0:07:11]} 8. Nbd2 {[%emt 0:19:03] White has an edge.}
Bb7 {[%emt 0:00:14] [#]} 9. Qb3 $146 {[%emt 0:00:20]} ({Predecessor:} 9. O-O
O-O 10. Qe2 e6 11. e4 d5 12. Bd3 dxe4 13. Nxe4 Qc8 14. Nxf6+ Nxf6 15. Rad1 {
0-1 (40) Zimmermann,R (2045)-Meissner,F (2291) Playchess.com INT 2020}) 9...
O-O {[%emt 0:01:39]} 10. O-O {[%emt 0:00:37]} c5 {[%emt 0:06:13]} 11. dxc5 {
[%emt 0:03:50]} Nxc5 {[%emt 0:00:38]} 12. Qc2 {[%emt 0:00:13]} e6 {[%emt 0:00:
00]} 13. Rfd1 {[%emt 0:06:19]} Qe7 {[%emt 0:02:16]} 14. Be2 {[%emt 0:05:51]}
Rfd8 {[%emt 0:02:18]} 15. Rac1 {[%emt 0:07:14]} Rac8 {[%emt 0:02:56]} 16. b4 {
[%emt 0:05:03]} Ncd7 {[%emt 0:04:14]} 17. Qa4 {[%emt 0:02:02]} a6 {[%emt 0:00:
00]} 18. Bxa6 {[%emt 0:02:09]} Ra8 {[%emt 0:00:51]} 19. b5 {[%emt 0:00:09]} Nc5
{[%emt 0:00:25][%csl Ya4,Ya6][%cal Yd7c5,Yc5d3,Yd3c1]} 20. Qb4 {[%emt 0:02:28]
This costs White the game.} (20. Qc4 $17) 20... Nd3 $19 {[%emt 0:00:46]} ({
Stronger than} 20... Nxa6 21. bxa6 Rxa6 22. Bxf6 Bxf6 23. Ne4 $17) 21. Qa3 {
[%emt 0:01:33]} Nxc1 {[%emt 0:00:17]} ({But not} 21... g5 $2 22. Bg3 $19) 22.
Rxc1 {[%emt 0:00:12]} Bxa6 {[%emt 0:00:55]} 23. bxa6 {[%emt 0:00:00]} Qa7 {
[%emt 0:00:09]} 24. Nc4 {[%emt 0:08:37]} Qxa6 {[%emt 0:00:31]} ({Don't go for} 
24... g5 $2 25. Bg3 $19) 25. Qb3 {[%emt 0:01:06]} b5 {[%emt 0:00:00]} 26. Ncd2
{[%emt 0:00:46]} Qxa2 {[%emt 0:00:15] [#] And now ...g5 would win.} 27. Qxb5 {
[%emt 0:00:13]} (27. Bxf6 $142 Bxf6 28. Qxb5) 27... g5 {[%emt 0:00:12]} 28. Bg3
{[%emt 0:00:14]} g4 {[%emt 0:00:06]} 29. Bh4 {[%emt 0:00:00]} gxf3 {[%emt 0:00:
13]} 30. Nxf3 {[%emt 0:00:09]} Rab8 {[%emt 0:00:16]} 31. Qd3 {[%emt 0:02:27]}
Rdc8 {[%emt 0:00:34]} 32. Qxd6 {[%emt 0:00:48]} Rb1 {[%emt 0:00:58]} 33. Qd1 {
[%emt 0:02:06]} Rxc1 {[%emt 0:00:15]} 34. Qxc1 {[%emt 0:00:09]} Rb8 {[%emt 0:
00:10] [#] ( -> ...Rb1)} 35. g4 {[%emt 0:09:33]} Rb1 {[%emt 0:00:05]} 36. Qf1 {
[%emt 0:01:50]} Rxf1+ {[%emt 0:00:06]} 37. Kxf1 {[%emt 0:00:06]} Qc4+ {[%emt 0:
00:11]} 38. Ke1 {[%emt 0:00:21]} Ne4 {[%emt 0:00:00] Black mates.} 39. h3 {
[%emt 0:01:03]} Bxc3+ {[%emt 0:02:36]} 40. Kd1 {[%emt 0:00:24]} Qd3+ {[%emt 0:
00:13]} 41. Kc1 {[%emt 0:30:27]} Nc5 {[%emt 0:00:00][%cal Rc5b3]} 42. Nd2 {
[%emt 0:01:43]} Qxd2+ {[%emt 0:00:11]} 43. Kb1 {[%emt 0:00:00]} Qb2# {[%emt 0:
00:00] Weighted Error Value: White=1.03/Black=0.18 (very precise)} 0-1

[Event "44th Chess Olympiad Open 2022"]
[Site "Chennai"]
[Date "2022.07.29"]
[Round "1.56"]
[White "Goh, Wei Ming Kevin"]
[Black "Cisse, Amadou Lamine"]
[Result "1-0"]
[WhiteElo "2453"]
[BlackElo "2005"]
[Annotator "ChessBase"]
[PlyCount "72"]
[EventDate "2022.??.??"]
[TimeControl "60"]

1. e4 {[%emt 0:01:07]} g6 {[%emt 0:02:57]} 2. d4 {[%emt 0:00:52]} Bg7 {[%emt 0:
00:00]} 3. Bc4 {[%emt 0:03:20]} c6 {[%emt 0:01:21]} 4. Bb3 {[%emt 0:01:00]} d6
{[%emt 0:03:47]} 5. Nf3 {[%emt 0:00:54]} e6 {[%emt 0:05:45]} 6. O-O {[%emt 0:
00:00]} Ne7 {[%emt 0:02:04]} 7. c3 {[%emt 0:03:30]} O-O {[%emt 0:02:14]} 8. Re1
{[%emt 0:00:58]} d5 {[%emt 0:04:54]} 9. e5 {[%emt 0:02:25]} h6 {[%emt 0:02:59]}
10. Bc2 {[%emt 0:02:07]} a5 {[%emt 0:02:47]} 11. Nbd2 {[%emt 0:01:40]} c5 {
[%emt 0:05:21]} 12. dxc5 {[%emt 0:03:41]} Na6 {[%emt 0:03:50]} 13. Nb3 {
[%emt 0:01:57]} a4 {[%emt 0:04:15]} 14. Nbd4 {[%emt 0:01:53]} Bd7 {[%emt 0:00:
00]} 15. Bf4 {[%emt 0:14:19]} Nxc5 {[%emt 0:02:41]} 16. Qd2 {[%emt 0:09:06]}
Kh7 {[%emt 0:00:43]} 17. h4 {[%emt 0:00:51]} a3 {[%emt 0:10:49]} 18. b3 {
[%emt 0:02:36]} Ne4 {[%emt 0:16:15]} 19. Bxe4 {[%emt 0:03:29]} dxe4 {[%emt 0:
00:00]} 20. Rxe4 {[%emt 0:00:11]} Nd5 {[%emt 0:02:36]} 21. c4 {[%emt 0:01:35]}
Ne7 {[%emt 0:05:08]} 22. Rd1 {[%emt 0:01:35]} Bc6 {[%emt 0:01:59]} 23. Nxc6 {
[%emt 0:04:06]} Qxd2 {[%emt 0:01:27]} 24. Rxd2 {[%emt 0:11:09]} Nxc6 {[%emt 0:
00:00]} 25. Nd4 {[%emt 0:01:16]} Na5 {[%emt 0:02:55]} 26. Re1 {[%emt 0:01:20]}
Rfd8 {[%emt 0:00:25]} 27. Nb5 {[%emt 0:01:28]} Bf8 {[%emt 0:00:56]} 28. Nd6 {
[%emt 0:02:50]} Rd7 {[%emt 0:00:30]} 29. b4 {[%emt 0:01:42]} Nc6 {[%emt 0:00:
00]} 30. b5 {[%emt 0:00:43]} Nd8 {[%emt 0:03:31]} 31. Red1 {[%emt 0:03:04]} Ra4
{[%emt 0:00:36]} 32. Be3 {[%emt 0:00:43]} Bg7 {[%emt 0:01:31]} 33. f4 {[%emt 0:
00:00]} f6 {[%emt 0:00:22]} 34. exf6 {[%emt 0:00:22]} Bxf6 {[%emt 0:00:02]} 35.
Ne4 {[%emt 0:00:09]} Rd3 {[%emt 0:01:38]} 36. Rc2 Rd2 {[%emt 0:00:30]} 1-0

[Event "44th Chess Olympiad Open 2022"]
[Site "Chennai"]
[Date "2022.07.29"]
[Round "1.56"]
[White "Gong, Qianyun"]
[Black "Badji, Sekou Aransbene"]
[Result "1-0"]
[WhiteElo "2275"]
[BlackElo "1732"]
[Annotator "ChessBase"]
[PlyCount "81"]
[EventDate "2022.??.??"]
[TimeControl "60"]

1. e4 {[%emt 0:00:03]} d6 {[%emt 0:00:29]} 2. d4 {[%emt 0:00:16]} c6 {[%emt 0:
00:00]} 3. Nc3 {[%emt 0:01:08]} Qc7 {[%emt 0:00:52]} 4. f4 {[%emt 0:01:03]} e5
{[%emt 0:00:57]} 5. Nf3 {[%emt 0:02:31]} Bg4 {[%emt 0:00:42]} 6. Be3 {[%emt 0:
00:00]} Nd7 {[%emt 0:00:22]} 7. h3 {[%emt 0:01:51]} Bxf3 {[%emt 0:04:08]} 8.
Qxf3 {[%emt 0:00:39]} Ngf6 {[%emt 0:03:50]} 9. Bc4 {[%emt 0:11:11]} b5 {
[%emt 0:04:39]} 10. Bb3 {[%emt 0:05:18]} a5 {[%emt 0:01:32]} 11. a4 {[%emt 0:
00:00]} b4 {[%emt 0:00:26]} 12. Ne2 {[%emt 0:00:13]} Be7 {[%emt 0:00:51]} 13.
O-O {[%emt 0:03:26]} O-O {[%emt 0:29:20]} 14. Rad1 {[%emt 0:20:48]} c5 {
[%emt 0:00:00]} 15. c3 {[%emt 0:06:38]} c4 {[%emt 0:00:00]} 16. Bc2 {[%emt 0:
00:00]} b3 {[%emt 0:00:00]} 17. Bb1 {[%emt 0:00:10]} Qc6 {[%emt 0:00:00]} 18.
Ng3 {[%emt 0:01:30]} g6 {[%emt 0:00:00]} 19. fxe5 {[%emt 0:05:55]} dxe5 {
[%emt 0:00:00]} 20. d5 {[%emt 0:00:06]} Qxa4 {[%emt 0:00:05]} 21. d6 {[%emt 0:
00:00]} Bd8 {[%emt 0:00:36]} 22. Bh6 {[%emt 0:01:25]} Re8 {[%emt 0:01:23]} 23.
Nf5 {[%emt 0:00:53]} Qc6 {[%emt 0:15:26]} 24. Ne3 {[%emt 0:09:46]} Bb6 {
[%emt 0:04:57]} 25. Kh2 {[%emt 0:03:52]} Bxe3 {[%emt 0:00:20]} 26. Bxe3 {
[%emt 0:00:07]} Re6 {[%emt 0:03:38]} 27. g4 {[%emt 0:00:15]} Rxd6 {[%emt 0:00:
00]} 28. Rxd6 {[%emt 0:00:08]} Qxd6 {[%emt 0:00:06]} 29. g5 {[%emt 0:00:04]}
Nh5 {[%emt 0:00:22]} 30. Qxf7+ {[%emt 0:00:22]} Kh8 {[%emt 0:00:17]} 31. Qxc4 {
[%emt 0:00:44]} Qa6 {[%emt 0:09:57]} 32. Bd3 {[%emt 0:02:04]} Qd6 {[%emt 0:00:
00]} 33. Be2 {[%emt 0:01:34]} Nf4 {[%emt 0:00:43]} 34. Rxf4 {[%emt 0:01:03]}
exf4 {[%emt 0:00:42]} 35. Bd4+ {[%emt 0:00:03]} Ne5 {[%emt 0:00:25]} 36. Qb5 {
[%emt 0:00:09]} Kg8 {[%emt 0:04:37]} 37. Bc4+ {[%emt 0:02:32]} Nxc4 {[%emt 0:
00:00]} 38. Qxc4+ {[%emt 0:00:05]} Kf8 {[%emt 0:00:50]} 39. Bc5 {[%emt 0:00:05]
} Rd8 {[%emt 0:00:21]} 40. Bxd6+ {[%emt 0:00:08]} Rxd6 {[%emt 0:00:09]} 41. Qc5
{[%emt 0:30:03]} 1-0

[Event "44th Chess Olympiad Open 2022"]
[Site "Chennai"]
[Date "2022.07.29"]
[Round "1.56"]
[White "Wane, Al Hassane"]
[Black "Siddharth, Jagadeesh"]
[Result "0-1"]
[WhiteElo "1750"]
[BlackElo "2426"]
[Annotator "TA"]
[PlyCount "108"]
[EventDate "2022.??.??"]
[TimeControl "60"]

{[%evp 16,108,-9,-18,0,-22,-18,-15,-11,-11,-18,-12,-14,-45,-49,-56,-62,-43,-45,
-99,-102,-137,-83,-160,-152,-157,-151,-152,-136,-144,-146,-137,-120,-150,-150,
-231,-235,-225,-228,-235,-164,-160,-172,-163,-156,-197,-200,-190,-195,-195,
-191,-185,-195,-186,-176,-195,-199,-195,-186,-342,-322,-390,-383,-429,-418,
-431,-422,-468,-452,-466,-456,-444,-439,-437,-418,-610,-610,-666,-647,-583,
-610,-1148,-1059,-2627,-2408,-2168,-1835,-1868,-1528,-29988,-29989,-29989,
-29990,-29990,-29991]} 1. d4 {[%emt 0:00:03]} Nf6 {[%emt 0:00:16]} 2. c4 {
[%emt 0:00:10]} c5 {[%emt 0:00:55]} 3. e3 {[%emt 0:00:22]} g6 {[%emt 0:00:22]}
4. Nf3 {[%emt 0:00:16]} cxd4 {[%emt 0:00:36]} 5. exd4 {[%emt 0:00:19]} d5 {
[%emt 0:00:27]} 6. Bd3 {[%emt 0:00:31]} Bg7 {[%emt 0:00:22]} 7. O-O {[%emt 0:
00:00]} O-O {[%emt 0:00:44]} 8. Nc3 {[%emt 0:00:09]} Nc6 {[%emt 0:02:43][%cal
Yb8c6,Yc6b4,Yb4d3]} 9. h3 {[%emt 0:00:20]} Nb4 {[%emt 0:03:00] D94: Grünfeld:
4 Nf3 Bg7 5 e3.} 10. Re1 {[%emt 0:02:40]} Nxd3 {[%emt 0:07:34]} 11. Qxd3 {
[%emt 0:00:22]} Bf5 {[%emt 0:00:21] The position is equal.} 12. Qe2 {[%emt 0:
00:43] [#]} dxc4 $146 {[%emt 0:00:27]} ({Predecessor:} 12... Re8 13. Bg5 Ne4
14. Bf4 Nxc3 15. bxc3 Rc8 16. cxd5 Qxd5 17. Rac1 Be6 18. Rc2 Qf5 {0-1 (57)
Aris,T (2173)-Yeoh,L (2302) Penang 2013}) 13. Qxc4 {[%emt 0:00:33]} Qd6 {
[%emt 0:01:23]} 14. Nb5 {[%emt 0:05:09]} Qa6 {[%emt 0:00:39]} 15. Na3 {[%emt 0:
04:12]} (15. Rxe7 Rac8 16. Qf1 (16. Qb3 $2 Bc2 $19) 16... Nd5 $17) 15... Qxc4 {
[%emt 0:01:22]} 16. Nxc4 {[%emt 0:00:42]} Rac8 {[%emt 0:00:29]} 17. Nce5 {
[%emt 0:01:45] Black converts the advantage convincingly.} (17. b3 $15) 17...
Nd5 $17 {[%emt 0:02:39]} 18. g4 {[%emt 0:13:03]} Bc2 {[%emt 0:00:45]} (18... f6
$142 19. gxf5 fxe5 20. Nxe5 Rxf5) 19. Nd7 {[%emt 0:00:52]} ({White should play
} 19. Bd2) 19... Rfd8 {[%emt 0:00:29]} 20. Nc5 {[%emt 0:00:29]} b6 $36 {
[%emt 0:01:13] Keeping White busy.} 21. Nb3 {[%emt 0:00:12]} e6 {[%emt 0:01:26]
} 22. Bg5 {[%emt 0:00:40]} Rd7 {[%emt 0:00:56]} 23. Rac1 {[%emt 0:05:57][%cal
Yb3c5]} Nb4 {[%emt 0:03:03] [#] Strongly threatening ... Nd3. Black is more
active.} 24. Re2 {[%emt 0:05:50]} Rdc7 {[%emt 0:01:03]} 25. Na1 {[%emt 0:01:50]
} (25. Ne1 $17 {might work better.}) 25... Bd3 $19 {[%emt 0:00:00]} 26. Rxc7 {
[%emt 0:04:22]} Rxc7 {[%emt 0:00:11]} 27. Re3 {[%emt 0:07:58]} Rc1+ {[%emt 0:
01:44]} 28. Re1 {[%emt 0:05:31]} Rxe1+ {[%emt 0:01:24]} 29. Nxe1 {[%emt 0:02:
14]} Be4 {[%emt 0:00:13]} ({Don't do} 29... Bxd4 30. a3 $11) 30. a3 {[%emt 0:
00:34]} Nc6 {[%emt 0:00:10]} ({Weaker is} 30... Bxd4 31. axb4 Bxb2 32. Nac2 $14
) 31. Nac2 {[%emt 0:02:47]} Nxd4 {[%emt 0:00:24]} 32. Nxd4 {[%emt 0:00:02]}
Bxd4 {[%emt 0:00:14] Endgame KBB-KBN} 33. Bc1 {[%emt 0:00:50]} f6 {[%emt 0:02:
41]} 34. Kf1 {[%emt 0:00:09]} Kf7 {[%emt 0:00:00]} 35. Ke2 {[%emt 0:00:02]} e5
{[%emt 0:00:26]} 36. f3 {[%emt 0:00:08]} Bd5 {[%emt 0:05:08]} 37. h4 $2 {
[%emt 0:01:15]} (37. Nc2) 37... Bc4+ {[%emt 0:01:43] This bishop pair is nice.}
38. Kd2 {[%emt 0:00:14]} h5 {[%emt 0:00:09]} 39. gxh5 {[%emt 0:03:25]} gxh5 {
[%emt 0:00:09]} 40. Ng2 {[%emt 0:01:26]} Bf2 {[%emt 0:00:45]} 41. Ne3 {[%emt 0:
33:16]} Be6 {[%emt 0:00:27]} 42. Ng2 {[%emt 0:00:00]} Bh3 {[%emt 0:30:02]} 43.
Ke2 {[%emt 0:00:16]} Bg3 {[%emt 0:00:11]} ({Not} 43... Bxg2 44. Kxf2 Bh3 45. f4
$15) 44. Ne3 {[%emt 0:02:06]} Bxh4 {[%emt 0:00:34]} 45. Nd5 {[%emt 0:02:16]} (
45. Nd1 $142) 45... Bg3 {[%emt 0:00:00]} 46. Be3 {[%emt 0:02:07]} h4 {[%emt 0:
02:22][%cal Yh5h4,Yh4g3]} 47. Bf2 {[%emt 0:00:35]} f5 {[%emt 0:01:29]} 48. Bxg3
{[%emt 0:01:40]} hxg3 {[%emt 0:00:10] KB-KN} 49. f4 {[%emt 0:00:08]} Ke6 {
[%emt 0:01:08]} 50. Nc7+ {[%emt 0:01:24]} Kd7 {[%emt 0:00:14]} 51. Nb5 {
[%emt 0:00:02]} exf4 {[%emt 0:00:00][%cal Ye5f4,Yf4f3] [#] ( -> ...Bg4+)} 52.
Nxa7 {[%emt 0:01:40]} Bg4+ {[%emt 0:00:11] Black mates.} 53. Kf1 {[%emt 0:00:
09]} f3 {[%emt 0:00:11]} 54. Nb5 {[%emt 0:00:10]} Bh3+ {[%emt 0:01:03]
Weighted Error Value: White=0.67/ Black=0.14 (very precise)} 0-1

[Event "44th Chess Olympiad Open 2022"]
[Site "Chennai"]
[Date "2022.07.29"]
[Round "1.56"]
[White "Diop, Wara"]
[Black "Wong, Zhenyong Jayden"]
[Result "0-1"]
[WhiteElo "1636"]
[BlackElo "2163"]
[Annotator "ChessBase"]
[PlyCount "98"]
[EventDate "2022.??.??"]
[TimeControl "60"]

1. e4 {[%emt 0:00:10]} c5 {[%emt 0:00:05]} 2. Nf3 {[%emt 0:00:29]} e6 {[%emt 0:
00:00]} 3. d4 {[%emt 0:00:28]} cxd4 {[%emt 0:00:06]} 4. c3 {[%emt 0:00:19]} Nf6
{[%emt 0:00:59]} 5. Bd3 {[%emt 0:01:25]} dxc3 {[%emt 0:00:30]} 6. Nxc3 {
[%emt 0:00:22]} Nc6 {[%emt 0:00:55]} 7. O-O {[%emt 0:00:38]} d5 {[%emt 0:03:47]
} 8. Bb5 {[%emt 0:04:50]} a6 {[%emt 0:01:30]} 9. Ba4 {[%emt 0:04:58]} Be7 {
[%emt 0:03:02]} 10. Qe2 {[%emt 0:00:33]} dxe4 {[%emt 0:07:41]} 11. Rd1 {
[%emt 0:02:32]} Qc7 {[%emt 0:03:46]} 12. Nxe4 {[%emt 0:01:00]} b5 {[%emt 0:00:
00]} 13. Bb3 {[%emt 0:04:52]} Bb7 {[%emt 0:00:36]} 14. Neg5 {[%emt 0:06:02]}
O-O {[%emt 0:14:56]} 15. Nxf7 {[%emt 0:10:05]} Rxf7 {[%emt 0:00:33]} 16. Qxe6 {
[%emt 0:00:44]} Nd8 {[%emt 0:14:33]} 17. Rxd8+ {[%emt 0:01:27]} Bxd8 {[%emt 0:
00:00]} 18. Ng5 {[%emt 0:02:53]} Bd5 {[%emt 0:01:16]} 19. Bxd5 {[%emt 0:00:58]}
Nxd5 {[%emt 0:00:04]} 20. Qxd5 {[%emt 0:01:36]} Rc8 {[%emt 0:00:10]} 21. Qxf7+
{[%emt 0:03:26]} Qxf7 {[%emt 0:00:04]} 22. Nxf7 {[%emt 0:00:03]} Kxf7 {[%emt 0:
00:00]} 23. Be3 {[%emt 0:03:14]} Rc2 {[%emt 0:02:47]} 24. Bd4 {[%emt 0:00:00]}
Bf6 {[%emt 0:02:49]} 25. Bxf6 {[%emt 0:00:56]} Kxf6 {[%emt 0:00:24]} 26. Rb1 {
[%emt 0:00:13]} b4 {[%emt 0:04:01]} 27. g3 {[%emt 0:02:00]} g5 {[%emt 0:01:37]}
28. h3 {[%emt 0:01:41]} h5 {[%emt 0:00:47]} 29. Kf1 {[%emt 0:01:32]} Kf5 {
[%emt 0:02:28]} 30. Kg2 {[%emt 0:06:27]} Ke4 {[%emt 0:04:31]} 31. Re1+ {
[%emt 0:06:58]} Kd5 {[%emt 0:00:30]} 32. Rd1+ {[%emt 0:00:17]} Kc5 {[%emt 0:00:
00]} 33. Rb1 {[%emt 0:00:49]} g4 {[%emt 0:00:32]} 34. hxg4 {[%emt 0:02:34]}
hxg4 {[%emt 0:00:02]} 35. Re1 {[%emt 0:05:02]} Rxb2 {[%emt 0:00:27]} 36. Re5+ {
[%emt 0:00:23]} Kc6 {[%emt 0:08:09]} 37. Re6+ {[%emt 0:06:18]} Kb5 {[%emt 0:00:
00]} 38. Re4 {[%emt 0:01:04]} Rxa2 {[%emt 0:00:25]} 39. Rxg4 {[%emt 0:00:02]}
Rc2 {[%emt 0:04:22]} 40. Rh4 {[%emt 0:01:38]} b3 {[%emt 0:02:29]} 41. Rh1 {
[%emt 0:30:28]} b2 {[%emt 0:30:11]} 42. Rb1 {[%emt 0:00:05]} a5 {[%emt 0:00:10]
} 43. g4 {[%emt 0:02:05]} a4 {[%emt 0:00:04]} 44. g5 {[%emt 0:01:16]} a3 {
[%emt 0:00:05]} 45. g6 {[%emt 0:00:10]} Rc6 {[%emt 0:00:19]} 46. f4 {[%emt 0:
00:00]} Rxg6+ {[%emt 0:00:03]} 47. Kf3 {[%emt 0:00:37]} Kc4 {[%emt 0:00:11]}
48. Ke4 {[%emt 0:00:03]} a2 {[%emt 0:00:25]} 49. Rxb2 {[%emt 0:00:37]} a1=Q {
[%emt 0:00:15]} 0-1

[Event "44th Chess Olympiad Open 2022"]
[Site "Chennai"]
[Date "2022.07.29"]
[Round "1.57"]
[White "Chukavin, Kirill"]
[Black "Dalliah, Joseph"]
[Result "1-0"]
[WhiteElo "2418"]
[BlackElo "1920"]
[Annotator "TA"]
[PlyCount "51"]
[EventDate "2022.??.??"]
[TimeControl "60"]

{[%evp 11,51,118,118,112,120,108,191,202,179,155,196,180,193,184,162,177,177,
167,144,120,281,296,285,289,352,350,482,377,791,719,729,727,679,680,783,789,
783,739,29981,29982,29990,29991]} 1. e4 {[%emt 0:00:13]} e5 {[%emt 0:00:14]} 2.
Nf3 {[%emt 0:00:18]} Nc6 {[%emt 0:00:25]} 3. Nc3 {[%emt 0:00:10]} Bc5 {[%emt 0:
00:00]} 4. Nxe5 {[%emt 0:02:59]} Nxe5 {[%emt 0:00:42]} 5. d4 {[%emt 0:00:12]}
Bxd4 {[%emt 0:04:45]} 6. Qxd4 {[%emt 0:00:07]} d6 {[%emt 0:03:53]} 7. Be2 {
[%emt 0:08:13] C46:3 Nc3: Unusual Black 3rd moves.} Nf6 {[%emt 0:02:09]} 8. Bg5
{[%emt 0:02:31] Black must now prevent 0-0-0.} Be6 {[%emt 0:00:52] [#]} (8...
h6 $16 {is a better defense.} 9. Bf4 Nc6) 9. f4 $146 {[%emt 0:01:49] White is
clearly better.} ({Predecessor:} 9. O-O-O h6 10. Bh4 Nc6 11. Qd2 g5 12. Bg3 Qd7
13. Rhe1 O-O-O 14. Bb5 a6 15. Ba4 {1-0 (23) Swinkels,R-Vermeend,J Hengelo 1999}
) 9... Nc6 {[%emt 0:01:31]} 10. Bb5 {[%emt 0:00:38]} Bd7 {[%emt 0:00:00]} 11.
Bxc6 {[%emt 0:08:18]} Bxc6 {[%emt 0:00:14] [#]} 12. O-O-O $1 {[%emt 0:19:42]
Strongly threatening e5.} h6 {[%emt 0:04:40] [#]} 13. Bh4 {[%emt 0:03:00]} O-O
{[%emt 0:19:42]} 14. Rhe1 {[%emt 0:09:07]} Re8 {[%emt 0:00:00]} 15. Qf2 {
[%emt 0:05:16] aiming for e5. White is more active.} Qc8 $2 {[%emt 0:06:28] A
mistake that costs the game.} (15... Qe7 $16) 16. Bxf6 {[%emt 0:00:21]} gxf6 {
[%emt 0:00:03]} 17. Qh4 {[%emt 0:01:24][%csl Yf6,Yh6]} Kg7 {[%emt 0:00:21]} 18.
Rd3 {[%emt 0:02:35][%cal Yd1d3,Yd3g3,Yg3h3]} Qe6 {[%emt 0:01:26]} 19. Rg3+ {
[%emt 0:03:32]} (19. Rh3 Rh8 20. Nd5 Bxd5 $16) 19... Kh7 $2 {[%emt 0:00:04]} (
19... Kf8 20. Ree3 (20. Qxh6+ Ke7 $16) 20... Ke7 21. Nd5+ (21. Qxh6 Kd7 $16)
21... Kd8) 20. f5 {[%emt 0:03:54] White wants to mate with Rh3.} Qe7 {[%emt 0:
02:51]} 21. Rh3 {[%emt 0:00:59]} ({Weaker is} 21. Qg4 Rg8 22. Qf4 Rxg3 23. hxg3
(23. Qxg3 Rg8 $11) 23... Qe5 $11) 21... Qf8 {[%emt 0:01:06]} 22. Ree3 {[%emt 0:
00:39]} b5 {[%emt 0:02:36]} 23. Qf4 {[%emt 0:00:00]} b4 {[%emt 0:02:07]} 24.
Nd1 {[%emt 0:01:48][%cal Yc3d1,Yd1f2,Yf2g4] Hoping for Nf2.} d5 {[%emt 0:00:45]
} 25. Nf2 {[%emt 0:00:53]} dxe4 {[%emt 0:00:52]} 26. Ng4 {[%emt 0:00:28]
Weighted Error Value: White=0.03 (flawless) /Black=0.79} 1-0